[Event "Late-Titled-Tuesday-Blitz-November-28-2023"]
[Site "Chess.com"]
[Date "2023.11.28"]
[Round "1"]
[White "mr_gustavo"]
[Black "Good_Knight_Kiss"]
[Result "1-0"]
[WhiteElo "2628"]
[BlackElo "2327"]
[TimeControl "180+1"]
[EndTime "14:06:51 PST"]
[Termination "mr_gustavo won by resignation"]

1. d4 {[%clk 0:02:59.9]} 1... Nf6 {[%clk 0:03:00.2]} 2. Bf4 {[%clk 0:02:59.3]}
2... g6 {[%clk 0:02:54.6]} 3. Nf3 {[%clk 0:02:57.8]} 3... Bg7 {[%clk 0:02:54.6]}
4. e3 {[%clk 0:02:58.2]} 4... d6 {[%clk 0:02:55.2]} 5. Nbd2 {[%clk 0:02:56.9]}
5... O-O {[%clk 0:02:55.1]} 6. c3 {[%clk 0:02:55.4]} 6... Nfd7 {[%clk
0:02:53.7]} 7. h3 {[%clk 0:02:54.9]} 7... h6 {[%clk 0:02:53.8]} 8. Be2 {[%clk
0:02:54.8]} 8... e5 {[%clk 0:02:54.4]} 9. Bh2 {[%clk 0:02:55.1]} 9... Nc6 {[%clk
0:02:54.7]} 10. O-O {[%clk 0:02:54.9]} 10... f5 {[%clk 0:02:54.7]} 11. b4 {[%clk
0:02:45.2]} 11... g5 {[%clk 0:02:49.6]} 12. Qb3+ {[%clk 0:02:40.2]} 12... Kh8
{[%clk 0:02:44.5]} 13. dxe5 {[%clk 0:02:36.2]} 13... dxe5 {[%clk 0:02:43.6]} 14.
Nc4 {[%clk 0:02:36.7]} 14... f4 {[%clk 0:02:40.5]} 15. b5 {[%clk 0:02:30.5]}
15... Ne7 {[%clk 0:02:36.5]} 16. Rad1 {[%clk 0:02:25.4]} 16... Qe8 {[%clk
0:02:21.5]} 17. exf4 {[%clk 0:02:24.3]} 17... exf4 {[%clk 0:02:20.8]} 18. Rfe1
{[%clk 0:02:24.4]} 18... Qf7 {[%clk 0:02:04.6]} 19. Nd4 {[%clk 0:02:06.2]} 19...
Ne5 {[%clk 0:01:28.2]} 20. Nxe5 {[%clk 0:01:59.2]} 20... Qxb3 {[%clk 0:01:23.3]}
21. axb3 {[%clk 0:01:57.1]} 21... Bxe5 {[%clk 0:01:23.5]} 22. Bg4 {[%clk
0:01:38.1]} 22... Ng6 {[%clk 0:01:11.2]} 23. c4 {[%clk 0:01:18.4]} 23... Bxg4
{[%clk 0:00:59.7]} 24. hxg4 {[%clk 0:01:19.3]} 24... Bxd4 {[%clk 0:00:57.7]} 25.
Rxd4 {[%clk 0:01:18.8]} 25... Rad8 {[%clk 0:00:57.8]} 26. Red1 {[%clk
0:01:16.5]} 26... Rxd4 {[%clk 0:00:53.4]} 27. Rxd4 {[%clk 0:01:17.4]} 27... Re8
{[%clk 0:00:45.3]} 28. Kf1 {[%clk 0:01:17.6]} 28... Ne5 {[%clk 0:00:40.3]} 29.
f3 {[%clk 0:01:17.5]} 29... Kg7 {[%clk 0:00:38.3]} 30. Bg1 {[%clk 0:01:16.8]}
30... Kf6 {[%clk 0:00:29]} 31. Re4 {[%clk 0:01:13.4]} 31... Re6 {[%clk
0:00:24.5]} 32. Bd4 {[%clk 0:01:07.2]} 32... a6 {[%clk 0:00:16.5]} 33. bxa6
{[%clk 0:01:05.7]} 33... bxa6 {[%clk 0:00:16.6]} 34. Ke2 {[%clk 0:00:54.5]}
34... c6 {[%clk 0:00:14.7]} 35. Kd2 {[%clk 0:00:49.9]} 35... Re8 {[%clk
0:00:13.3]} 36. Kc3 {[%clk 0:00:49.5]} 36... a5 {[%clk 0:00:11.8]} 37. Kb2
{[%clk 0:00:48.9]} 37... c5 {[%clk 0:00:06.9]} 38. Bc3 {[%clk 0:00:48.2]} 38...
Re7 {[%clk 0:00:04.8]} 39. Ka3 {[%clk 0:00:48.5]} 39... Re6 {[%clk 0:00:04.7]}
40. Ka4 {[%clk 0:00:48.9]} 40... Re7 {[%clk 0:00:02.9]} 41. Kxa5 {[%clk
0:00:48.4]} 41... Ra7+ {[%clk 0:00:03]} 42. Kb6 {[%clk 0:00:49.1]} 42... Re7
{[%clk 0:00:03.1]} 1-0

[Event "Late-Titled-Tuesday-Blitz-November-28-2023"]
[Site "Chess.com"]
[Date "2023.11.28"]
[Round "1"]
[White "Lukianoo"]
[Black "Mikhal867"]
[Result "1-0"]
[WhiteElo "2823"]
[BlackElo "2428"]
[TimeControl "180+1"]
[EndTime "14:06:56 PST"]
[Termination "Lukianoo won on time"]

1. e4 {[%clk 0:03:00.9]} 1... g6 {[%clk 0:02:40.3]} 2. d4 {[%clk 0:03:00]} 2...
Bg7 {[%clk 0:02:39.6]} 3. Nc3 {[%clk 0:02:59.9]} 3... d6 {[%clk 0:02:39.1]} 4.
Be2 {[%clk 0:02:58.5]} 4... a6 {[%clk 0:02:38.6]} 5. a4 {[%clk 0:02:57.8]} 5...
b6 {[%clk 0:02:38]} 6. h4 {[%clk 0:02:56.7]} 6... h6 {[%clk 0:02:34.9]} 7. h5
{[%clk 0:02:55.2]} 7... g5 {[%clk 0:02:34.5]} 8. f4 {[%clk 0:02:55.4]} 8... gxf4
{[%clk 0:02:33.4]} 9. Bxf4 {[%clk 0:02:56.3]} 9... Nc6 {[%clk 0:02:31.7]} 10.
Nf3 {[%clk 0:02:55.5]} 10... Bg4 {[%clk 0:02:29.9]} 11. Be3 {[%clk 0:02:48.9]}
11... Nf6 {[%clk 0:02:25.6]} 12. Nh4 {[%clk 0:02:47.2]} 12... Bxe2 {[%clk
0:02:16]} 13. Qxe2 {[%clk 0:02:48.1]} 13... Qd7 {[%clk 0:02:00.5]} 14. Nf5
{[%clk 0:02:45.5]} 14... Rg8 {[%clk 0:02:00.2]} 15. Qf3 {[%clk 0:02:40.9]} 15...
O-O-O {[%clk 0:01:54]} 16. O-O-O {[%clk 0:02:35.8]} 16... Bh8 {[%clk 0:01:31.9]}
17. e5 {[%clk 0:02:32.3]} 17... Ng4 {[%clk 0:01:27.6]} 18. Rh4 {[%clk
0:02:09.3]} 18... Nxe3 {[%clk 0:01:22.2]} 19. Nxe3 {[%clk 0:02:10.2]} 19... e6
{[%clk 0:01:12.7]} 20. exd6 {[%clk 0:02:04.4]} 20... Qxd6 {[%clk 0:01:06.7]} 21.
Nc4 {[%clk 0:01:56.8]} 21... Qd7 {[%clk 0:00:48.1]} 22. d5 {[%clk 0:01:56]}
22... exd5 {[%clk 0:00:32.3]} 23. Rxd5 {[%clk 0:01:55]} 23... Qe7 {[%clk
0:00:24.9]} 24. Re4 {[%clk 0:01:49]} 24... Qb4 {[%clk 0:00:17.1]} 25. Nd6+
{[%clk 0:01:39]} 25... Qxd6 {[%clk 0:00:14.5]} 26. Rxd6 {[%clk 0:01:39.1]} 26...
Rxd6 {[%clk 0:00:14.8]} 27. Rc4 {[%clk 0:01:28.9]} 27... Kb7 {[%clk 0:00:13.3]}
28. Nb5 {[%clk 0:01:21.1]} 28... axb5 {[%clk 0:00:11.9]} 29. axb5 {[%clk
0:01:20.7]} 29... Rgd8 {[%clk 0:00:08]} 30. c3 {[%clk 0:01:14.1]} 30... Kb8
{[%clk 0:00:06.9]} 31. Rxc6 {[%clk 0:01:10.5]} 31... Be5 {[%clk 0:00:06]} 32.
Rxd6 {[%clk 0:01:09.3]} 32... Bxd6 {[%clk 0:00:06]} 33. Qxf7 {[%clk 0:01:08.4]}
33... Rf8 {[%clk 0:00:06.2]} 34. Qg7 {[%clk 0:01:04.4]} 34... Rf1+ {[%clk
0:00:06]} 35. Kc2 {[%clk 0:01:04.2]} 35... Rf2+ {[%clk 0:00:06.3]} 36. Kb3
{[%clk 0:01:04.2]} 36... Rf5 {[%clk 0:00:06.1]} 37. Qxh6 {[%clk 0:01:00.4]}
37... Rxb5+ {[%clk 0:00:06]} 38. Kc2 {[%clk 0:00:59.2]} 38... Rf5 {[%clk
0:00:05.4]} 39. g4 {[%clk 0:00:58.3]} 39... Rf2+ {[%clk 0:00:05.2]} 40. Kb3
{[%clk 0:00:56.4]} 40... Bf4 {[%clk 0:00:04.4]} 41. Qf8+ {[%clk 0:00:54.9]}
41... Ka7 {[%clk 0:00:04.5]} 42. h6 {[%clk 0:00:53.1]} 42... Be3 {[%clk
0:00:01.2]} 43. Qxf2 {[%clk 0:00:51.6]} 43... Bxf2 {[%clk 0:00:01.5]} 44. h7
{[%clk 0:00:51.5]} 1-0

[Event "Late-Titled-Tuesday-Blitz-November-28-2023"]
[Site "Chess.com"]
[Date "2023.11.28"]
[Round "1"]
[White "NoHeThTo"]
[Black "Zampronha1971"]
[Result "1-0"]
[WhiteElo "2695"]
[BlackElo "2371"]
[TimeControl "180+1"]
[EndTime "14:06:58 PST"]
[Termination "NoHeThTo won on time"]

1. d4 {[%clk 0:03:00.9]} 1... Nf6 {[%clk 0:02:59]} 2. Nc3 {[%clk 0:03:00.9]}
2... d5 {[%clk 0:02:58.1]} 3. Bf4 {[%clk 0:03:01.6]} 3... a6 {[%clk 0:02:54.1]}
4. e3 {[%clk 0:03:01.8]} 4... e6 {[%clk 0:02:53.9]} 5. Bd3 {[%clk 0:03:01.2]}
5... c5 {[%clk 0:02:54.5]} 6. dxc5 {[%clk 0:03:02.1]} 6... Bxc5 {[%clk
0:02:53.7]} 7. Nf3 {[%clk 0:03:03]} 7... O-O {[%clk 0:02:52.5]} 8. O-O {[%clk
0:03:03.5]} 8... Nc6 {[%clk 0:02:47.5]} 9. e4 {[%clk 0:03:03.4]} 9... dxe4
{[%clk 0:02:43.4]} 10. Nxe4 {[%clk 0:03:03.3]} 10... Be7 {[%clk 0:02:32.2]} 11.
c3 {[%clk 0:02:59.3]} 11... Nxe4 {[%clk 0:02:27.4]} 12. Bxe4 {[%clk 0:02:59.2]}
12... Qxd1 {[%clk 0:02:28.1]} 13. Rfxd1 {[%clk 0:02:59.4]} 13... Rd8 {[%clk
0:02:26.5]} 14. Bxc6 {[%clk 0:02:59.1]} 14... bxc6 {[%clk 0:02:25.6]} 15. Bc7
{[%clk 0:02:49.5]} 15... Rd7 {[%clk 0:02:19.7]} 16. Ba5 {[%clk 0:02:45.5]} 16...
Rb8 {[%clk 0:01:50.7]} 17. b4 {[%clk 0:02:40.7]} 17... Bf6 {[%clk 0:01:49.1]}
18. Rxd7 {[%clk 0:02:24.8]} 18... Bxd7 {[%clk 0:01:48.2]} 19. Rc1 {[%clk
0:02:25.5]} 19... g6 {[%clk 0:01:33]} 20. Kf1 {[%clk 0:02:25.2]} 20... Kg7
{[%clk 0:01:17]} 21. Ke2 {[%clk 0:02:23.5]} 21... e5 {[%clk 0:01:11.1]} 22. Nd2
{[%clk 0:02:20.5]} 22... Be6 {[%clk 0:01:09.2]} 23. a3 {[%clk 0:02:15.8]} 23...
Bg5 {[%clk 0:01:06.8]} 24. Rd1 {[%clk 0:02:15.4]} 24... Bxd2 {[%clk 0:01:04.2]}
25. Rxd2 {[%clk 0:02:15.4]} 25... Bd5 {[%clk 0:01:03.2]} 26. f3 {[%clk
0:02:13.1]} 26... f5 {[%clk 0:01:02.9]} 27. Ke3 {[%clk 0:02:12.3]} 27... Kf6
{[%clk 0:01:00.9]} 28. c4 {[%clk 0:01:55.8]} 28... Bxc4 {[%clk 0:00:50.2]} 29.
Rd6+ {[%clk 0:01:55.4]} 29... Kg5 {[%clk 0:00:47.2]} 30. Rxc6 {[%clk 0:01:51.1]}
30... Bf1 {[%clk 0:00:47.8]} 31. g3 {[%clk 0:01:46.4]} 31... Bb5 {[%clk
0:00:39.7]} 32. Re6 {[%clk 0:01:35.3]} 32... f4+ {[%clk 0:00:38.3]} 33. Ke4
{[%clk 0:01:33.5]} 33... fxg3 {[%clk 0:00:34.9]} 34. hxg3 {[%clk 0:01:34]} 34...
Re8 {[%clk 0:00:33]} 35. Rxe8 {[%clk 0:01:20.2]} 35... Bxe8 {[%clk 0:00:33.9]}
36. Kxe5 {[%clk 0:01:20.8]} 36... Bc6 {[%clk 0:00:31.3]} 37. Bd8+ {[%clk
0:01:20]} 37... Kh5 {[%clk 0:00:30.3]} 38. g4+ {[%clk 0:01:19.7]} 38... Kh6
{[%clk 0:00:29.9]} 39. f4 {[%clk 0:01:08.7]} 39... Kg7 {[%clk 0:00:26.8]} 40. f5
{[%clk 0:01:02.2]} 40... gxf5 {[%clk 0:00:25.6]} 41. gxf5 {[%clk 0:01:02.3]}
41... Kf7 {[%clk 0:00:24.5]} 42. Bh4 {[%clk 0:01:01.1]} 42... h5 {[%clk
0:00:23.6]} 43. Kd6 {[%clk 0:00:59.9]} 43... Be4 {[%clk 0:00:21.8]} 44. f6
{[%clk 0:01:00.3]} 44... Bd3 {[%clk 0:00:04.2]} 45. a4 {[%clk 0:00:55.3]} 45...
Bc2 {[%clk 0:00:02.9]} 46. b5 {[%clk 0:00:55.2]} 1-0

[Event "Late-Titled-Tuesday-Blitz-November-28-2023"]
[Site "Chess.com"]
[Date "2023.11.28"]
[Round "1"]
[White "DreamsAreFake"]
[Black "SergioMoralesG"]
[Result "1-0"]
[WhiteElo "2641"]
[BlackElo "2339"]
[TimeControl "180+1"]
[EndTime "14:06:58 PST"]
[Termination "DreamsAreFake won on time"]

1. Nf3 {[%clk 0:02:25.8]} 1... d5 {[%clk 0:02:58]} 2. g3 {[%clk 0:02:25.2]} 2...
Bg4 {[%clk 0:02:57.9]} 3. Bg2 {[%clk 0:02:25.3]} 3... Nd7 {[%clk 0:02:58.5]} 4.
d4 {[%clk 0:02:22]} 4... Ngf6 {[%clk 0:02:55.2]} 5. O-O {[%clk 0:02:21.9]} 5...
e6 {[%clk 0:02:54.3]} 6. c4 {[%clk 0:02:12.4]} 6... c6 {[%clk 0:02:53.1]} 7. b3
{[%clk 0:02:06]} 7... Be7 {[%clk 0:02:48.2]} 8. Nc3 {[%clk 0:02:06.1]} 8... O-O
{[%clk 0:02:47.7]} 9. h3 {[%clk 0:02:04.4]} 9... Bh5 {[%clk 0:02:45.3]} 10. g4
{[%clk 0:01:57]} 10... Bg6 {[%clk 0:02:44.9]} 11. Nh4 {[%clk 0:01:55.1]} 11...
dxc4 {[%clk 0:02:20.5]} 12. Nxg6 {[%clk 0:01:53.8]} 12... hxg6 {[%clk
0:02:19.2]} 13. bxc4 {[%clk 0:01:54.5]} 13... Nb6 {[%clk 0:02:19.3]} 14. Qd3
{[%clk 0:01:47.1]} 14... Qd7 {[%clk 0:02:04.5]} 15. Bf4 {[%clk 0:01:41.9]} 15...
Rad8 {[%clk 0:02:01.7]} 16. Rfd1 {[%clk 0:01:40.4]} 16... Qc8 {[%clk 0:01:54.9]}
17. Rab1 {[%clk 0:01:28.9]} 17... c5 {[%clk 0:01:49.3]} 18. d5 {[%clk
0:01:28.7]} 18... Bd6 {[%clk 0:01:31.7]} 19. Bxd6 {[%clk 0:01:25.6]} 19... Rxd6
{[%clk 0:01:32.6]} 20. Nb5 {[%clk 0:01:26.3]} 20... Rdd8 {[%clk 0:01:24.8]} 21.
Nxa7 {[%clk 0:01:25.7]} 21... Qc7 {[%clk 0:01:25.4]} 22. d6 {[%clk 0:01:23.6]}
22... Qb8 {[%clk 0:01:22.3]} 23. Rxb6 {[%clk 0:01:14.9]} 23... Qxa7 {[%clk
0:01:22.1]} 24. Qb3 {[%clk 0:01:14.2]} 24... Ra8 {[%clk 0:00:51.7]} 25. Rxb7
{[%clk 0:00:47.1]} 25... Qxa2 {[%clk 0:00:51.3]} 26. Qxa2 {[%clk 0:00:47.6]}
26... Rxa2 {[%clk 0:00:52.1]} 27. d7 {[%clk 0:00:47.6]} 27... Rd8 {[%clk
0:00:49.4]} 28. Rc7 {[%clk 0:00:47.1]} 28... Kf8 {[%clk 0:00:42.4]} 29. g5
{[%clk 0:00:45.5]} 29... Nh5 {[%clk 0:00:35.2]} 30. e3 {[%clk 0:00:44.2]} 30...
Ke7 {[%clk 0:00:32]} 31. Bc6 {[%clk 0:00:41.2]} 31... Rb2 {[%clk 0:00:21.6]} 32.
Ra1 {[%clk 0:00:37.5]} 32... Rc2 {[%clk 0:00:16.6]} 33. Rc8 {[%clk 0:00:35.1]}
33... Rd2 {[%clk 0:00:11.4]} 34. Rxd8 {[%clk 0:00:33.5]} 34... Kxd8 {[%clk
0:00:12.3]} 35. Ra8+ {[%clk 0:00:33.8]} 35... Kc7 {[%clk 0:00:06.3]} 36. Rc8+
{[%clk 0:00:34.1]} 36... Kb6 {[%clk 0:00:05.6]} 37. Bb5 {[%clk 0:00:34.2]} 1-0

[Event "Late-Titled-Tuesday-Blitz-November-28-2023"]
[Site "Chess.com"]
[Date "2023.11.28"]
[Round "1"]
[White "WilliamAlfaroCaracas"]
[Black "ahkashefi2800"]
[Result "0-1"]
[WhiteElo "2227"]
[BlackElo "2566"]
[TimeControl "180+1"]
[EndTime "14:06:59 PST"]
[Termination "ahkashefi2800 won on time"]

1. e3 {[%clk 0:02:59.7]} 1... d5 {[%clk 0:02:54.7]} 2. c4 {[%clk 0:02:59]} 2...
c6 {[%clk 0:02:53.7]} 3. Nf3 {[%clk 0:02:56.2]} 3... Nf6 {[%clk 0:02:42.9]} 4.
d4 {[%clk 0:02:52.4]} 4... Bg4 {[%clk 0:02:35.2]} 5. Nbd2 {[%clk 0:02:42.5]}
5... e6 {[%clk 0:02:28.7]} 6. h3 {[%clk 0:02:41.9]} 6... Bxf3 {[%clk 0:02:19.4]}
7. Nxf3 {[%clk 0:02:41]} 7... Ne4 {[%clk 0:02:10.2]} 8. a3 {[%clk 0:02:04.4]}
8... Qa5+ {[%clk 0:02:04.5]} 9. Bd2 {[%clk 0:02:01.7]} 9... Nxd2 {[%clk
0:01:49.8]} 10. Qxd2 {[%clk 0:02:01.5]} 10... Qxd2+ {[%clk 0:01:45.2]} 11. Kxd2
{[%clk 0:01:58.3]} 11... Nd7 {[%clk 0:01:43.2]} 12. c5 {[%clk 0:01:41.2]} 12...
Be7 {[%clk 0:01:37.9]} 13. Bd3 {[%clk 0:01:33.2]} 13... Bf6 {[%clk 0:01:28.3]}
14. b4 {[%clk 0:01:06.9]} 14... e5 {[%clk 0:01:24.8]} 15. Bf5 {[%clk 0:00:59.3]}
15... exd4 {[%clk 0:00:59.8]} 16. exd4 {[%clk 0:00:46.3]} 16... Nf8 {[%clk
0:00:58.3]} 17. Rhe1+ {[%clk 0:00:42.7]} 17... Kd8 {[%clk 0:00:54.8]} 18. Ne5
{[%clk 0:00:35.7]} 18... Bxe5 {[%clk 0:00:53.6]} 19. Rxe5 {[%clk 0:00:34.6]}
19... Nd7 {[%clk 0:00:43.6]} 20. Re3 {[%clk 0:00:29.7]} 20... g6 {[%clk
0:00:38.2]} 21. Bxd7 {[%clk 0:00:29]} 21... Kxd7 {[%clk 0:00:38.4]} 22. Rae1
{[%clk 0:00:28.3]} 22... Rae8 {[%clk 0:00:38.3]} 23. Rxe8 {[%clk 0:00:19.8]}
23... Rxe8 {[%clk 0:00:38.4]} 24. Rxe8 {[%clk 0:00:20.7]} 24... Kxe8 {[%clk
0:00:38.6]} 25. Ke3 {[%clk 0:00:16.9]} 25... Ke7 {[%clk 0:00:35.9]} 26. Kf4
{[%clk 0:00:15.8]} 26... f6 {[%clk 0:00:35.3]} 27. g4 {[%clk 0:00:11.2]} 27...
Ke6 {[%clk 0:00:33.9]} 28. h4 {[%clk 0:00:08.7]} 28... h6 {[%clk 0:00:33.8]} 29.
h5 {[%clk 0:00:04.4]} 29... g5+ {[%clk 0:00:32.2]} 30. Ke3 {[%clk 0:00:04.3]}
30... Kd7 {[%clk 0:00:25.2]} 31. f3 {[%clk 0:00:02.9]} 31... b6 {[%clk 0:00:24]}
0-1

[Event "Late-Titled-Tuesday-Blitz-November-28-2023"]
[Site "Chess.com"]
[Date "2023.11.28"]
[Round "1"]
[White "MNyuyu"]
[Black "jefferyx"]
[Result "1/2-1/2"]
[WhiteElo "2487"]
[BlackElo "2976"]
[TimeControl "180+1"]
[EndTime "14:07:00 PST"]
[Termination "Game drawn by repetition"]

1. d4 {[%clk 0:03:00.9]} 1... Nf6 {[%clk 0:02:59.9]} 2. c4 {[%clk 0:03:01.3]}
2... e6 {[%clk 0:03:00.3]} 3. Nc3 {[%clk 0:03:01.7]} 3... Bb4 {[%clk 0:03:00.6]}
4. Qc2 {[%clk 0:03:02.2]} 4... d5 {[%clk 0:02:59.3]} 5. Nf3 {[%clk 0:03:01.5]}
5... dxc4 {[%clk 0:02:55.3]} 6. e4 {[%clk 0:02:58.2]} 6... b5 {[%clk 0:02:54]}
7. a4 {[%clk 0:02:52.6]} 7... c6 {[%clk 0:02:52.5]} 8. Be2 {[%clk 0:02:40.9]}
8... Bb7 {[%clk 0:02:45]} 9. O-O {[%clk 0:02:41.4]} 9... a6 {[%clk 0:02:45.2]}
10. Bg5 {[%clk 0:02:40.6]} 10... h6 {[%clk 0:02:39.4]} 11. Bh4 {[%clk
0:02:34.7]} 11... Nbd7 {[%clk 0:02:31.4]} 12. Rfd1 {[%clk 0:02:30.2]} 12... Qb6
{[%clk 0:02:16.7]} 13. b3 {[%clk 0:02:18.7]} 13... cxb3 {[%clk 0:02:06.4]} 14.
Qxb3 {[%clk 0:02:19.6]} 14... Bxc3 {[%clk 0:02:07.3]} 15. Qxc3 {[%clk 0:02:19]}
15... Nxe4 {[%clk 0:02:08]} 16. Qb4 {[%clk 0:02:12.8]} 16... a5 {[%clk 0:02:07]}
17. Qb1 {[%clk 0:02:09]} 17... Nd6 {[%clk 0:02:05]} 18. Bg3 {[%clk 0:02:06.9]}
18... Nf5 {[%clk 0:01:55.9]} 19. axb5 {[%clk 0:02:04]} 19... Nxg3 {[%clk
0:01:55.2]} 20. hxg3 {[%clk 0:02:01.9]} 20... O-O {[%clk 0:01:54.2]} 21. bxc6
{[%clk 0:01:59.3]} 21... Bxc6 {[%clk 0:01:50.1]} 22. Qa2 {[%clk 0:01:46]} 22...
a4 {[%clk 0:01:46.2]} 23. Rab1 {[%clk 0:01:44.4]} 23... Qa5 {[%clk 0:01:42.7]}
24. Rdc1 {[%clk 0:01:40.5]} 24... Bd5 {[%clk 0:01:42.2]} 25. Bc4 {[%clk
0:01:40.4]} 25... Nb6 {[%clk 0:01:40.3]} 26. Bxd5 {[%clk 0:01:38.9]} 26... Nxd5
{[%clk 0:01:41.2]} 27. Qa3 {[%clk 0:01:33.4]} 27... Rfb8 {[%clk 0:01:37.2]} 28.
Ne5 {[%clk 0:01:32.6]} 28... Rxb1 {[%clk 0:01:35.1]} 29. Rxb1 {[%clk 0:01:32.3]}
29... Qc3 {[%clk 0:01:35.6]} 30. Qd6 {[%clk 0:01:22.9]} 30... Qc4 {[%clk
0:01:27.5]} 31. Rb8+ {[%clk 0:01:20.7]} 31... Rxb8 {[%clk 0:01:26.4]} 32. Qxb8+
{[%clk 0:01:21.6]} 32... Kh7 {[%clk 0:01:27]} 33. Nxf7 {[%clk 0:01:22.2]} 33...
Qxd4 {[%clk 0:01:12.1]} 34. Kh2 {[%clk 0:01:20]} 34... a3 {[%clk 0:01:07.6]} 35.
f4 {[%clk 0:01:19.3]} 35... a2 {[%clk 0:01:05]} 36. Qh8+ {[%clk 0:01:11.9]}
36... Kg6 {[%clk 0:01:05.1]} 37. Qe8 {[%clk 0:01:12.6]} 37... Qf6 {[%clk
0:00:49.2]} 38. Ne5+ {[%clk 0:00:51.7]} 38... Kf5 {[%clk 0:00:49.4]} 39. Qa4
{[%clk 0:00:50.4]} 39... Ne3 {[%clk 0:00:31]} 40. Qxa2 {[%clk 0:00:41.7]} 40...
Ng4+ {[%clk 0:00:28]} 41. Nxg4 {[%clk 0:00:41.8]} 41... Kxg4 {[%clk 0:00:28.9]}
42. Qe2+ {[%clk 0:00:41.4]} 42... Kf5 {[%clk 0:00:29.3]} 43. Qd3+ {[%clk
0:00:37.2]} 43... Kg4 {[%clk 0:00:28]} 44. Qf3+ {[%clk 0:00:36.4]} 44... Kf5
{[%clk 0:00:28.4]} 45. Qd3+ {[%clk 0:00:33.4]} 45... Kg4 {[%clk 0:00:28.7]} 46.
Qf3+ {[%clk 0:00:31.3]} 46... Kf5 {[%clk 0:00:29.1]} 47. Qd3+ {[%clk 0:00:27]}
1/2-1/2

[Event "Late-Titled-Tuesday-Blitz-November-28-2023"]
[Site "Chess.com"]
[Date "2023.11.28"]
[Round "1"]
[White "NotFischer"]
[Black "subham777"]
[Result "0-1"]
[WhiteElo "2345"]
[BlackElo "2656"]
[TimeControl "180+1"]
[EndTime "14:07:01 PST"]
[Termination "subham777 won by checkmate"]

1. e4 {[%clk 0:03:00.9]} 1... e6 {[%clk 0:02:59.9]} 2. d4 {[%clk 0:03:00.5]}
2... d5 {[%clk 0:03:00.1]} 3. e5 {[%clk 0:03:00.8]} 3... c5 {[%clk 0:03:00]} 4.
c3 {[%clk 0:03:01]} 4... Nc6 {[%clk 0:02:56.9]} 5. Nf3 {[%clk 0:03:00.6]} 5...
Qb6 {[%clk 0:02:54.7]} 6. Bd3 {[%clk 0:02:59.9]} 6... cxd4 {[%clk 0:02:52.5]} 7.
O-O {[%clk 0:02:58.2]} 7... Bd7 {[%clk 0:02:50.3]} 8. Re1 {[%clk 0:02:54.3]}
8... Nge7 {[%clk 0:02:49.1]} 9. h4 {[%clk 0:02:52.6]} 9... g6 {[%clk 0:02:42.6]}
10. Nbd2 {[%clk 0:02:45.3]} 10... Bg7 {[%clk 0:02:31.9]} 11. Nb3 {[%clk
0:02:32.4]} 11... dxc3 {[%clk 0:02:29]} 12. bxc3 {[%clk 0:02:33.3]} 12... h5
{[%clk 0:02:16.3]} 13. Ba3 {[%clk 0:02:28.9]} 13... O-O {[%clk 0:02:07.6]} 14.
Rb1 {[%clk 0:02:28.1]} 14... Qd8 {[%clk 0:02:03.3]} 15. Bd6 {[%clk 0:02:16.8]}
15... Re8 {[%clk 0:01:41.6]} 16. Nc5 {[%clk 0:01:53.5]} 16... b6 {[%clk
0:01:23.8]} 17. Nb7 {[%clk 0:01:43.5]} 17... Qc8 {[%clk 0:01:13.1]} 18. Ba6
{[%clk 0:01:43.4]} 18... Nb8 {[%clk 0:00:48.5]} 19. Bxb8 {[%clk 0:01:42.9]}
19... Rxb8 {[%clk 0:00:45.2]} 20. Qe2 {[%clk 0:01:13]} 20... Rxb7 {[%clk
0:00:42.4]} 21. a4 {[%clk 0:01:03]} 21... Bc6 {[%clk 0:00:28.8]} 22. a5 {[%clk
0:00:55]} 22... Qc7 {[%clk 0:00:28]} 23. Bxb7 {[%clk 0:00:54.8]} 23... Bxb7
{[%clk 0:00:28.6]} 24. axb6 {[%clk 0:00:54.9]} 24... axb6 {[%clk 0:00:29.2]} 25.
Rec1 {[%clk 0:00:51.2]} 25... Bc6 {[%clk 0:00:27.7]} 26. c4 {[%clk 0:00:50.9]}
26... dxc4 {[%clk 0:00:24.6]} 27. Rxc4 {[%clk 0:00:51.3]} 27... Qb7 {[%clk
0:00:20.4]} 28. Rc3 {[%clk 0:00:38]} 28... Nd5 {[%clk 0:00:20]} 29. Rcb3 {[%clk
0:00:36.6]} 29... b5 {[%clk 0:00:19.9]} 30. Qb2 {[%clk 0:00:26]} 30... b4 {[%clk
0:00:18.1]} 31. Nd4 {[%clk 0:00:25.6]} 31... Bxe5 {[%clk 0:00:16.1]} 32. Qd2
{[%clk 0:00:24.4]} 32... Ba4 {[%clk 0:00:08.6]} 33. Rd3 {[%clk 0:00:15.5]} 33...
Nf4 {[%clk 0:00:06.6]} 34. Rxb4 {[%clk 0:00:12.8]} 34... Qxg2# {[%clk
0:00:05.9]} 0-1